bitfinex-derivatives/quotes_BTCF0:USTF0_20240814
["timestamp","ask_amount","ask_price","bid_price","bid_amount"]
[1723642405544,0.00012184,60777.0,60773.0,0.082246]
[1723642405947,0.3608,60776.0,60769.0,0.36877518]
[1723642406144,0.3608,60776.0,60771.0,0.082249]
[1723642406345,0.3608,60776.0,60766.0,0.0971]
[1723642406346,0.3608,60776.0,60773.0,0.082246]
[1723642406648,0.00012184,60777.0,60773.0,0.082246]
[1723642407149,0.00110346,60775.0,60773.0,0.082246]
[1723642407354,0.00110346,60775.0,60770.0,0.002]
[1723642407953,0.3608,60774.0,60770.0,0.002]
[1723642408350,0.00110346,60772.0,60771.0,0.082249]
[1723642409648,0.00110346,60772.0,60770.0,0.002]
[1723642409849,0.00110346,60772.0,60759.0,0.00828172]
[1723642409850,0.3549,60771.0,60759.0,0.00828172]
[1723642410051,0.3549,60771.0,60764.0,0.082259]
[1723642410052,0.3608,60768.0,60764.0,0.082259]
[1723642410242,0.00110346,60766.0,60765.0,0.082258]
[1723642412445,0.00110346,60766.0,60765.0,0.09005688]
[1723642413250,0.00210346,60766.0,60765.0,0.09005688]
[1723642413644,0.00310346,60766.0,60765.0,0.09205688]
[1723642413850,0.00012184,60777.0,60776.0,0.082243]
[1723642414051,0.00012184,60777.0,60776.0,0.443043]
[1723642414748,0.3608,60793.0,60792.0,0.082221]
[1723642414957,0.3608,60801.0,60790.0,0.3608]
[1723642415250,0.00024668,60799.0,60798.0,0.082213]
[1723642415871,0.00045378,60799.0,60798.0,0.082213]
[1723642416444,0.00045378,60799.0,60798.0,0.657866]
[1723642416649,0.00045378,60799.0,60798.0,0.66581387]
[1723642416951,0.003,60801.0,60800.0,0.08221]
[1723642417156,0.36850154,60815.0,60804.0,0.082203]
[1723642417454,0.3608,60810.0,60804.0,0.082203]
[1723642417755,0.3608,60805.0,60798.0,0.004]
[1723642417960,0.443011,60799.0,60798.0,0.004]
[1723642418146,0.44491436,60799.0,60798.0,0.004]
[1723642418344,0.93835436,60799.0,60798.0,0.004]
[1723642418544,0.082229,60786.0,60781.0,0.3608]
[1723642418751,0.00016292,60785.0,60781.0,0.3608]
[1723642419051,0.00016292,60785.0,60782.0,0.082234]
[1723642419255,0.00016292,60785.0,60781.0,0.3608]
[1723642419256,0.00175319,60784.0,60781.0,0.3608]
[1723642419557,0.082234,60782.0,60781.0,0.3608]
[1723642419945,0.082234,60782.0,60781.0,0.3648]
[1723642420146,0.082234,60782.0,60759.0,0.0488]
[1723642420147,0.082236,60781.0,60769.0,0.00777404]
[1723642420350,0.082251,60771.0,60765.0,0.3608]
[1723642420650,0.36255319,60775.0,60765.0,0.3608]
[1723642420651,0.00018782,60770.0,60769.0,0.082252]
[1723642421452,0.00194101,60770.0,60769.0,0.575932]
[1723642421661,0.3608,60789.0,60784.0,0.082232]
[1723642421854,0.3608,60789.0,60788.0,0.082226]
[1723642422052,0.798756,60796.0,60786.0,0.3608]
[1723642422053,0.00760174,60793.0,60786.0,0.3608]
[1723642422249,0.36164,60796.0,60786.0,0.3608]
[1723642422250,0.3608,60796.0,60786.0,0.3608]
[1723642422453,0.3608,60801.0,60797.0,0.082214]
[1723642422656,0.082203,60806.0,60791.0,0.3608]
[1723642422657,0.00018942,60800.0,60791.0,0.3608]
[1723642422955,0.00018942,60800.0,60793.0,0.00024668]
[1723642423164,0.00018942,60800.0,60796.0,0.082215]
[1723642423365,0.00018942,60800.0,60793.0,0.00024668]
[1723642423657,0.3618,60796.0,60793.0,0.00024668]
[1723642423858,0.3618,60796.0,60795.0,0.082217]
[1723642424049,0.001,60796.0,60795.0,0.082217]
[1723642425054,0.001,60796.0,60793.0,0.00024668]
[1723642425262,0.3549,60794.0,60793.0,0.00024668]
[1723642425445,0.837118,60794.0,60793.0,0.00024668]
[1723642425645,1.24838,60794.0,60786.0,0.3748]
[1723642425952,0.082228,60787.0,60786.0,0.014]
[1723642426150,0.082228,60787.0,60775.0,0.3608]
[1723642426151,0.08241742,60787.0,60775.0,0.3608]
[1723642426350,0.082243,60776.0,60770.0,0.082251]
[1723642426548,0.082243,60776.0,60764.0,0.04883482]
[1723642426752,0.3608,60778.0,60768.0,0.082253]
[1723642427055,0.082246,60774.0,60768.0,0.082253]
[1723642427260,0.08236459,60773.0,60769.0,0.082251]
[1723642427452,0.00011759,60773.0,60767.0,0.36104668]
[1723642427652,0.00011759,60773.0,60772.0,0.082248]
[1723642427950,0.00011759,60773.0,60770.0,0.014]
[1723642428151,0.00110425,60772.0,60767.0,0.44330068]
[1723642428352,0.082246,60770.0,60769.0,0.014]
[1723642428955,0.00110425,60772.0,60769.0,0.014]
[1723642429152,0.082247,60769.0,60768.0,0.014]
[1723642429754,0.00110425,60771.0,60752.0,0.40963482]
[1723642429958,0.00110425,60771.0,60755.0,0.082263]
[1723642429959,0.082253,60764.0,60755.0,0.082263]
[1723642430159,0.3608,60767.0,60755.0,0.082263]
[1723642430354,0.00221287,60761.0,60752.0,0.3608]
[1723642430558,0.08446887,60761.0,60752.0,0.3608]
[1723642430753,0.08446887,60761.0,60755.0,0.082263]
[1723642430754,0.082257,60760.0,60755.0,0.082263]
[1723642430955,0.00012743,60759.0,60755.0,0.082263]
[1723642431258,0.00012743,60759.0,60752.0,0.3608]
[1723642431259,0.00012743,60759.0,60752.0,0.36863586]
[1723642431460,0.00221287,60756.0,60752.0,0.36863586]
[1723642431665,0.00221287,60756.0,60755.0,0.082263]
[1723642432552,0.00221287,60756.0,60753.0,0.04883482]
[1723642432862,0.00221287,60756.0,60747.0,0.407]
[1723642432863,0.3608,60754.0,60748.0,0.04883482]
[1723642433073,0.3608,60754.0,60738.0,0.3608]
[1723642433074,0.082272,60748.0,60747.0,0.0012]
[1723642433358,0.082275,60746.0,60738.0,0.3608]
[1723642433554,0.082275,60746.0,60731.0,0.0976]
[1723642433555,0.082275,60746.0,60734.0,0.00797575]
[1723642433753,0.082275,60746.0,60735.0,0.082288]
[1723642433959,0.082275,60746.0,60734.0,0.00797575]
[1723642433960,0.3608,60747.0,60734.0,0.00797575]
[1723642434359,0.3608,60747.0,60738.0,0.082285]
[1723642434565,0.00221287,60746.0,60738.0,0.082285]
[1723642434865,0.00321287,60746.0,60738.0,0.082285]
[1723642435054,0.08548787,60746.0,60745.0,0.01418038]
[1723642435260,0.082291,60734.0,60732.0,0.04883482]
[1723642435453,0.89709287,60746.0,60718.0,0.04883482]
[1723642435454,0.082299,60729.0,60718.0,0.04883482]
[1723642435653,0.3608,60727.0,60716.0,0.3608]
[1723642435862,0.00221287,60733.0,60723.0,0.7216]
[1723642436063,0.00024689,60730.0,60723.0,0.7216]
[1723642436258,0.00017687,60729.0,60724.0,0.082304]
[1723642436561,0.00017687,60729.0,60717.0,0.04883482]
[1723642436762,0.3608,60727.0,60714.0,0.49195282]
[1723642436960,0.082316,60716.0,60714.0,0.3608]
[1723642437354,0.082316,60716.0,60704.0,0.06518244]
[1723642437355,0.082318,60714.0,60702.0,0.40963482]
[1723642437655,0.36099837,60715.0,60702.0,0.3608]
[1723642437855,0.36099837,60715.0,60702.0,0.3689557]
[1723642438264,0.00044526,60715.0,60702.0,0.3689557]
[1723642438761,0.00044526,60715.0,60707.0,0.3608]
[1723642438968,0.082318,60714.0,60707.0,0.3608]
[1723642439160,0.00044526,60715.0,60701.0,0.082335]
[1723642439161,0.082329,60706.0,60701.0,0.082335]
[1723642439360,0.082329,60706.0,60697.0,0.00012783]
[1723642439361,0.36172,60709.0,60703.0,0.082333]
[1723642439664,0.3608,60709.0,60697.0,0.00012783]
[1723642439969,0.3608,60709.0,60708.0,0.082326]
[1723642440368,0.3608,60709.0,60697.0,0.00012783]
[1723642440573,0.001,60706.0,60705.0,0.08233]
[1723642440867,0.001,60706.0,60697.0,0.00012783]
[1723642441067,0.001,60706.0,60697.0,0.00833966]
[1723642441261,0.001,60706.0,60704.0,0.082331]
[1723642441456,0.001,60706.0,60705.0,0.08233]
[1723642441670,0.001,60709.0,60708.0,0.082325]
[1723642441971,0.083325,60709.0,60701.0,0.3608]
[1723642442165,0.001,60709.0,60701.0,0.3608]
[1723642442367,0.001,60709.0,60708.0,0.082326]
[1723642442562,0.00144526,60715.0,60714.0,0.082318]
[1723642442863,0.00088,60734.0,60716.0,0.082314]
[1723642443069,0.3608,60735.0,60722.0,0.3608]
[1723642443267,0.00803213,60739.0,60714.0,0.3608]
[1723642443268,0.3608,60724.0,60714.0,0.3608]
[1723642443463,0.3608,60724.0,60709.0,0.3608]
[1723642443464,0.3608,60719.0,60709.0,0.3608]
[1723642443662,0.00011824,60718.0,60716.0,0.082315]
[1723642444164,0.00011824,60718.0,60717.0,0.082314]
[1723642444467,0.00011824,60718.0,60717.0,0.525428]
[1723642444773,0.082287,60737.0,60719.0,0.082311]
[1723642444963,0.082287,60737.0,60734.0,0.08229]
[1723642444964,0.3608,60735.0,60734.0,0.08229]
[1723642445169,0.44419716,60735.0,60724.0,0.3608]
[1723642445468,0.0823,60727.0,60724.0,0.3608]
[1723642445663,0.082303,60725.0,60724.0,0.3608]
[1723642446165,0.08341016,60725.0,60724.0,0.3608]
[1723642446671,0.08231,60720.0,60719.0,0.0002471]
[1723642447270,0.08341716,60720.0,60719.0,0.0002471]
[1723642447473,0.00221432,60720.0,60719.0,0.0825581]
[1723642447660,0.08452432,60720.0,60719.0,0.0002471]
[1723642447973,0.00221432,60720.0,60719.0,0.4433581]
[1723642448474,0.08452432,60720.0,60719.0,0.0002471]
[1723642448768,0.00221432,60720.0,60719.0,0.0002471]
[1723642448970,0.08452432,60720.0,60719.0,0.0002471]
[1723642449472,0.08233,60705.0,60704.0,0.3608]
[1723642449771,0.08233,60705.0,60699.0,0.3608]
[1723642449772,0.08238319,60705.0,60699.0,0.3608]
[1723642449973,0.082337,60700.0,60699.0,0.3608]
[1723642450361,0.08459553,60700.0,60699.0,0.3608]
[1723642450960,0.082339,60698.0,60693.0,0.0002471]
[1723642451166,0.082339,60698.0,60688.0,0.504453]
[1723642451167,0.082352,60689.0,60688.0,0.328]
[1723642451371,0.082352,60689.0,60685.0,0.5406]
[1723642451372,0.082356,60686.0,60685.0,0.0012]
[1723642451572,0.3608,60692.0,60677.0,0.328]
[1723642451573,0.082358,60684.0,60680.0,0.082363]
[1723642451969,0.3608,60687.0,60677.0,0.328]
[1723642452275,0.00225853,60689.0,60682.0,0.3608]
[1723642452276,0.00014011,60686.0,60682.0,0.3608]
[1723642452465,0.00014011,60686.0,60685.0,0.082357]
[1723642452666,0.3608,60711.0,60685.0,0.4]
[1723642452873,0.3608,60711.0,60695.0,0.3608]
[1723642452874,0.082342,60696.0,60695.0,0.3608]
[1723642453072,0.3608,60711.0,60695.0,0.3608]
[1723642453271,0.082342,60696.0,60695.0,0.3608]
[1723642453774,4.091e-05,60696.0,60687.0,0.00794868]
[1723642453966,4.091e-05,60696.0,60689.0,0.0002471]
[1723642454281,0.08235,60690.0,60689.0,0.0002471]
[1723642455769,0.08335,60690.0,60689.0,0.0002471]
[1723642455971,0.57767,60690.0,60671.0,0.0453]
[1723642456171,0.3608,60684.0,60671.0,0.0453]
[1723642456369,4.091e-05,60683.0,60673.0,0.082373]
[1723642456879,0.082366,60679.0,60674.0,0.082372]
[1723642457077,4.091e-05,60683.0,60671.0,0.0453]
[1723642457371,0.00110779,60677.0,60671.0,0.0453]
[1723642457580,0.00110779,60677.0,60676.0,0.082369]
[1723642459180,0.00110779,60677.0,60676.0,0.443169]
[1723642459475,0.00210779,60677.0,60676.0,0.443169]
[1723642460175,0.00310779,60677.0,60676.0,1.337609]
[1723642460379,0.00028801,60683.0,60682.0,0.082361]
[1723642460681,0.00028801,60683.0,60682.0,0.443161]
[1723642460896,0.00028801,60683.0,60677.0,0.443168]
[1723642461069,0.00028801,60683.0,60677.0,0.3608]
[1723642461574,0.00028801,60683.0,60682.0,0.443161]
[1723642462784,0.00128801,60683.0,60682.0,0.443161]
[1723642462969,0.3608,60698.0,60683.0,0.082359]
[1723642463175,0.3608,60698.0,60689.0,0.3608]
[1723642463476,0.3608,60698.0,60694.0,0.082344]
[1723642463780,0.3608,60698.0,60689.0,0.3608]
[1723642463975,0.3608,60690.0,60677.0,0.40963482]
[1723642464175,0.3608,60682.0,60677.0,0.40963482]
[1723642464376,0.356,60683.0,60677.0,0.40963482]
[1723642464673,0.356,60683.0,60677.0,0.40988192]
[1723642464872,0.082362,60681.0,60677.0,0.40988192]
[1723642465073,0.082365,60679.0,60677.0,0.40988192]
[1723642465283,0.3608,60684.0,60677.0,0.40988192]
[1723642465778,0.001,60683.0,60682.0,0.082361]
[1723642466081,0.001,60683.0,60682.0,0.443161]
[1723642466277,0.001,60683.0,60682.0,0.3608]
[1723642466468,0.08336,60683.0,60682.0,0.3608]
[1723642466671,0.001,60683.0,60682.0,0.443161]
[1723642467377,0.082363,60681.0,60678.0,0.082366]
[1723642467572,0.082363,60681.0,60679.0,0.082365]
[1723642467779,0.082365,60680.0,60677.0,0.40988192]
[1723642467984,0.001,60683.0,60677.0,0.40988192]
[1723642468372,0.082366,60679.0,60677.0,0.40988192]
[1723642468573,0.082367,60678.0,60677.0,0.40988192]
[1723642469273,0.082367,60678.0,60677.0,0.3610471]
[1723642469476,0.001,60681.0,60677.0,0.3610471]
[1723642469878,0.001,60681.0,60680.0,0.082364]
[1723642470281,0.001,60681.0,60680.0,0.58492731]
[1723642470581,0.001,60683.0,60682.0,0.082362]
[1723642470778,0.001,60683.0,60680.0,0.00789932]
[1723642470973,0.001,60683.0,60677.0,0.40988192]
[1723642470974,0.082367,60678.0,60677.0,0.0002471]
[1723642471369,0.082367,60678.0,60670.0,0.3608]
[1723642471370,0.082377,60671.0,60670.0,0.3608]
[1723642472384,0.3608,60675.0,60670.0,0.3608]
[1723642472574,0.08237,60677.0,60673.0,0.082374]
[1723642472970,0.08237,60677.0,60670.0,0.3608]
[1723642473172,0.00794907,60680.0,60670.0,0.3608]
[1723642473373,0.082366,60679.0,60676.0,0.082369]
[1723642473572,0.08237,60676.0,60675.0,0.3608]
[1723642473772,0.08237,60677.0,60675.0,0.3608]
[1723642473981,0.082362,60682.0,60675.0,0.3608]
[1723642474183,0.3608,60684.0,60675.0,0.3608]
[1723642474380,0.3608,60684.0,60683.0,0.08236]
[1723642474784,0.443993,60689.0,60685.0,0.082358]
[1723642474785,0.083193,60689.0,60685.0,0.082358]
[1723642474984,0.36164,60696.0,60685.0,0.082358]
[1723642475285,0.3608,60711.0,60685.0,1.144834]
[1723642475474,0.3608,60711.0,60703.0,0.3608]
[1723642475672,0.3608,60706.0,60703.0,0.082333]
[1723642476073,0.3608,60706.0,60702.0,0.082333]
[1723642476276,0.3608,60706.0,60700.0,0.3608]
[1723642476483,0.0002471,60710.0,60705.0,0.3608]
[1723642476680,0.0825721,60710.0,60703.0,0.04906215]
[1723642476985,0.0825721,60710.0,60699.0,0.4262162]
[1723642476986,0.0825721,60710.0,60706.0,0.3608]
[1723642477285,0.0825721,60710.0,60701.0,0.0654162]
[1723642477286,0.0002471,60710.0,60701.0,0.04906215]
[1723642477476,0.0002471,60710.0,60698.0,0.0002471]
[1723642477477,0.082339,60699.0,60698.0,0.0002471]
[1723642477678,0.0480471,60710.0,60698.0,0.0002471]
[1723642477876,0.082339,60699.0,60698.0,0.0002471]
[1723642478791,0.08344438,60699.0,60698.0,0.0002471]
[1723642478988,0.08344438,60699.0,60698.0,0.0825871]
[1723642478989,0.00110538,60699.0,60698.0,0.0825871]
[1723642479288,0.0012471,60710.0,60698.0,1.4152871]
[1723642479486,0.0012471,60710.0,60709.0,0.082325]
[1723642479683,0.0012471,60710.0,60709.0,0.443125]
[1723642479887,0.0022471,60710.0,60709.0,0.976485]
[1723642480487,0.0012471,60710.0,60709.0,0.976485]
[1723642480692,0.0012471,60710.0,60709.0,0.04914575]
[1723642480983,0.082339,60699.0,60698.0,0.0112471]
[1723642481188,0.525478,60699.0,60698.0,0.0112471]
[1723642481385,0.525478,60699.0,60698.0,0.0052471]
[1723642481583,1.419718,60699.0,60698.0,0.0052471]
[1723642481781,0.082356,60686.0,60685.0,0.04914575]
[1723642481983,0.082356,60686.0,60685.0,0.04916133]
[1723642482184,0.082356,60686.0,60684.0,0.13152033]
[1723642482483,0.082351,60690.0,60684.0,0.04916133]
[1723642482680,0.3608,60691.0,60681.0,0.06555347]
[1723642482681,0.44315,60691.0,60681.0,0.06555347]
[1723642482888,0.00110538,60686.0,60684.0,0.04916552]
[1723642483079,0.00110538,60686.0,60679.0,0.06555347]
[1723642483080,0.082358,60685.0,60683.0,0.04916552]
[1723642483283,0.082358,60685.0,60683.0,0.04916975]
[1723642483482,0.00110538,60686.0,60682.0,0.04916975]
[1723642483483,0.082359,60684.0,60682.0,0.04916975]
[1723642483685,0.00110538,60686.0,60682.0,0.04916975]
[1723642483686,0.08236,60683.0,60682.0,0.04916975]
[1723642483991,0.08346538,60683.0,60682.0,0.04916975]
[1723642484787,0.08346538,60683.0,60682.0,0.04917006]
[1723642485179,0.08346538,60683.0,60677.0,0.42635347]
[1723642485180,0.00110538,60683.0,60679.0,0.04917006]
[1723642485379,0.082366,60679.0,60678.0,0.04917006]
[1723642485587,0.082367,60678.0,60677.0,0.3608]
[1723642485779,0.082373,60675.0,60672.0,0.0491715]
[1723642486080,0.00110538,60674.0,60673.0,0.082374]
[1723642486483,0.0002471,60680.0,60673.0,1.13591805]
[1723642486683,0.0002471,60680.0,60679.0,0.7823529]
[1723642486890,0.0002471,60680.0,60679.0,1.293566]
[1723642487591,0.0012645,60680.0,60679.0,1.337566]
[1723642487791,0.0012645,60680.0,60679.0,0.443166]
[1723642488000,0.0012645,60680.0,60677.0,0.04917011]
[1723642488291,0.001,60675.0,60674.0,0.04917011]
[1723642488493,0.001,60675.0,60673.0,0.13954311]
[1723642488694,0.4441904,60674.0,60673.0,0.008]
[1723642488895,0.4441904,60674.0,60672.0,0.008]
[1723642488896,0.082374,60673.0,60672.0,0.008]
[1723642489190,0.164748,60673.0,60672.0,0.008]
[1723642489689,0.082375,60672.0,60664.0,0.04917972]
[1723642489994,0.0010174,60673.0,60663.0,0.3608]
[1723642490188,0.082386,60664.0,60663.0,0.3608]
[1723642490591,0.164772,60664.0,60663.0,0.3608]
[1723642490915,0.082388,60663.0,60657.0,0.3608]
[1723642491490,0.082388,60663.0,60653.0,0.04917972]
[1723642491491,0.082388,60663.0,60653.0,0.13158072]
[1723642491792,0.082388,60663.0,60651.0,0.13170299]
[1723642491793,0.082401,60654.0,60651.0,0.13170299]
[1723642491986,0.082403,60652.0,60651.0,0.00011927]
[1723642492187,0.082403,60652.0,60642.0,0.08147805]
[1723642492188,0.08242,60639.0,60636.0,0.04917972]
[1723642492392,0.08242,60639.0,60635.0,0.06555691]
[1723642492393,0.082428,60633.0,60632.0,0.04917972]
[1723642492595,0.3608,60637.0,60629.0,0.40997972]
[1723642492802,0.0010174,60633.0,60629.0,0.40997972]
[1723642492985,0.3608,60631.0,60622.0,0.04917972]
[1723642493185,0.00011927,60630.0,60619.0,0.3608]
[1723642493592,0.3608,60625.0,60619.0,0.3608]
[1723642493987,0.3608,60625.0,60609.0,0.06555691]
[1723642493988,0.3608,60620.0,60611.0,0.04917972]
[1723642494189,0.3608,60620.0,60602.0,0.09909367]
[1723642494190,0.3608,60612.0,60587.0,0.4098693]
[1723642494498,0.712,60618.0,60576.0,0.09777367]
[1723642494499,0.3608,60599.0,60581.0,0.3608]
[1723642494699,0.3608,60606.0,60594.0,0.3608]
[1723642495001,0.17532225,60619.0,60605.0,0.8547826]
[1723642495313,0.00020132,60618.0,60613.0,0.3608]
[1723642495500,0.36100132,60618.0,60605.0,0.3597826]
[1723642495799,0.356,60616.0,60605.0,0.3597826]
[1723642496000,0.3608,60613.0,60604.0,0.3608]
[1723642496188,0.3618,60606.0,60594.0,0.005]
[1723642496391,0.001,60606.0,60596.0,0.3608]
[1723642496592,0.082471,60602.0,60596.0,0.3608]
[1723642496797,0.001,60606.0,60596.0,0.3608]
[1723642496798,0.002,60606.0,60596.0,0.3608]
[1723642497199,0.002,60606.0,60594.0,0.005]
[1723642497200,0.082479,60596.0,60594.0,0.005]
[1723642497402,0.00012181,60595.0,60594.0,0.005]
[1723642497604,0.00012181,60595.0,60589.0,0.3608]
[1723642498099,0.00012181,60595.0,60594.0,0.3608]
[1723642498291,0.001,60606.0,60594.0,0.3608]
[1723642498292,0.083465,60606.0,60594.0,0.3608]
[1723642498496,0.36168,60608.0,60600.0,0.3608]
[1723642498695,0.443263,60608.0,60600.0,0.3608]
[1723642498901,0.082464,60607.0,60600.0,0.3608]
[1723642499096,0.3608,60608.0,60600.0,0.3608]
[1723642499297,0.41682,60625.0,60600.0,0.3608]
[1723642499298,0.36172,60625.0,60601.0,0.85584]
[1723642499499,0.36172,60625.0,60592.0,0.42406827]
[1723642499500,0.3608,60631.0,60613.0,0.082455]
[1723642499698,0.3608,60631.0,60602.0,0.0473]
[1723642499699,0.082444,60622.0,60610.0,0.3608]
[1723642499905,0.3608,60621.0,60604.0,0.3608]
[1723642500094,0.4159,60635.0,60604.0,0.3608]
[1723642500095,0.3608,60615.0,60604.0,0.3608]
[1723642500295,0.082462,60609.0,60604.0,0.3608]
[1723642500496,0.3608,60606.0,60597.0,0.3608]
[1723642500695,0.3608,60615.0,60605.0,0.3608]
[1723642500909,0.3608,60626.0,60613.0,0.3608]
[1723642501104,0.3608,60626.0,60612.0,0.082456]
[1723642501105,0.00024752,60616.0,60612.0,0.082456]
[1723642501402,0.00024752,60616.0,60615.0,0.3608]
[1723642501603,0.00024752,60616.0,60613.0,0.00096]
[1723642501793,0.3608,60614.0,60603.0,0.00024752]
[1723642501997,0.3608,60608.0,60603.0,0.00024752]
[1723642502296,0.3608,60614.0,60607.0,0.3608]
[1723642502703,0.082468,60605.0,60603.0,0.00024752]
[1723642503096,0.3608,60609.0,60603.0,0.00024752]
[1723642503297,0.3618,60614.0,60604.0,0.082467]
[1723642503503,0.3618,60614.0,60607.0,0.3608]
[1723642503700,0.082458,60612.0,60607.0,0.3608]
[1723642503898,0.3618,60614.0,60607.0,0.3608]
[1723642504102,0.3608,60609.0,60603.0,0.00024752]
[1723642504300,0.3608,60609.0,60592.0,0.489684]
[1723642504301,0.3608,60604.0,60592.0,0.3608]
[1723642504907,0.082471,60602.0,60592.0,0.443284]
[1723642505103,0.3608,60604.0,60592.0,0.443284]
[1723642505104,0.3608,60604.0,60592.0,0.3608]
[1723642505308,0.3608,60593.0,60585.0,0.00018419]
[1723642505508,0.082489,60589.0,60585.0,0.00018419]
[1723642505701,0.3608,60593.0,60580.0,0.3608]
[1723642506205,0.3608,60593.0,60581.0,0.0494]
[1723642506407,0.3608,60593.0,60581.0,0.4102]
[1723642506611,0.3608,60593.0,60575.0,0.3608]
[1723642506612,0.00018419,60592.0,60575.0,0.3608]
[1723642506805,0.00018419,60592.0,60581.0,0.3608]
[1723642507002,0.082486,60591.0,60581.0,0.3608]
[1723642507220,0.3608,60587.0,60578.0,0.3608]
[1723642507408,0.3608,60587.0,60574.0,0.0473]
[1723642507603,0.3608,60587.0,60573.0,0.443309]
[1723642507905,0.082504,60578.0,60573.0,0.3608]
[1723642508110,0.00018091,60577.0,60573.0,0.3608]
[1723642508312,0.08268591,60577.0,60573.0,0.3608]
[1723642508801,0.00018091,60577.0,60573.0,0.3608]
[1723642509000,0.082506,60576.0,60573.0,0.3608]
[1723642509200,0.3608,60574.0,60572.0,0.082511]
[1723642509604,0.00018091,60577.0,60575.0,0.082507]
[1723642509805,0.00018091,60577.0,60573.0,0.3608]
[1723642509806,0.3618,60604.0,60574.0,0.3608]
[1723642510108,0.3608,60598.0,60588.0,0.3608]
[1723642510511,0.3608,60598.0,60556.0,0.0490693]
[1723642510512,0.3608,60589.0,60574.0,0.3608]
[1723642510696,0.001,60576.0,60573.0,0.006]
[1723642510905,0.001,60576.0,60575.0,0.003]
[1723642512604,0.3608,60579.0,60572.0,0.082511]
[1723642513598,0.3608,60579.0,60568.0,0.3608]
[1723642513599,0.3608,60579.0,60574.0,0.082508]
[1723642513805,0.00024752,60582.0,60575.0,0.004]
[1723642514006,0.00024752,60582.0,60580.0,0.4433]
[1723642514510,0.3608,60592.0,60581.0,0.4952]
[1723642514708,0.3608,60603.0,60591.0,0.3608]
[1723642515213,0.082476,60598.0,60591.0,0.3608]
[1723642515412,0.3608,60596.0,60586.0,0.3608]
[1723642515609,0.3608,60603.0,60590.0,0.3608]
[1723642515812,0.23104,60615.0,60602.0,0.3608]
[1723642516113,0.082455,60614.0,60598.0,0.3608]
[1723642516315,0.082463,60608.0,60598.0,0.3608]
[1723642516503,0.082455,60614.0,60603.0,0.082469]
[1723642516701,0.3608,60619.0,60598.0,0.3608]
[1723642516702,0.3608,60619.0,60605.0,0.3608]
[1723642516906,0.3608,60613.0,60605.0,0.3608]
[1723642517110,0.082441,60624.0,60605.0,0.3608]
[1723642517309,0.3608,60625.0,60612.0,0.082457]
[1723642517515,0.3608,60619.0,60610.0,0.3608]
[1723642517813,0.3608,60619.0,60594.0,0.0471]
[1723642517814,0.3608,60612.0,60594.0,0.0471]
[1723642518111,0.3608,60598.0,60591.0,0.0483]
[1723642518316,0.3608,60612.0,60596.0,0.3608]
[1723642518513,0.3608,60612.0,60602.0,0.3608]
[1723642518714,0.3608,60612.0,60583.0,0.0471]
[1723642518715,0.082461,60609.0,60608.0,5.2e-07]
[1723642518907,0.941622,60609.0,60608.0,5.2e-07]
[1723642519215,1.836622,60609.0,60608.0,5.2e-07]
[1723642519411,1.754161,60609.0,60608.0,5.2e-07]
[1723642519612,0.082472,60601.0,60594.0,0.001]
[1723642519920,0.3608,60598.0,60595.0,0.082479]
[1723642520219,0.3608,60598.0,60589.0,0.3608]
[1723642520520,0.08248,60596.0,60589.0,0.443288]
[1723642520711,0.08248,60595.0,60589.0,0.443288]
[1723642520927,0.3608,60598.0,60589.0,0.3608]
[1723642521112,0.082487,60591.0,60589.0,0.3608]
[1723642521322,0.3608,60592.0,60584.0,0.04884687]
[1723642521516,0.3608,60592.0,60580.0,0.04884687]
[1723642521819,0.3608,60592.0,60577.0,0.0497]
[1723642521820,0.082503,60579.0,60577.0,0.0497]
[1723642522417,0.3608,60585.0,60577.0,0.0497]
[1723642522418,0.443294,60585.0,60577.0,0.0497]
[1723642522619,0.3608,60585.0,60583.0,0.082496]
[1723642522916,0.00024752,60594.0,60584.0,0.42592917]
[1723642523116,0.00024752,60594.0,60589.0,0.3608]
[1723642523307,0.00024752,60594.0,60590.0,0.04915482]
[1723642523518,0.082485,60592.0,60590.0,0.04915482]
[1723642523714,0.00024752,60594.0,60590.0,0.04915482]
[1723642524121,0.082487,60590.0,60589.0,0.001]
[1723642525014,0.3608,60591.0,60579.0,0.04915482]
[1723642525213,0.3608,60582.0,60579.0,0.04915482]
[1723642525415,0.3608,60592.0,60581.0,0.3608]
[1723642525617,0.00024752,60594.0,60581.0,0.3608]
[1723642525820,0.3608,60593.0,60581.0,0.3608]
[1723642526219,0.00024752,60594.0,60581.0,0.3608]
[1723642526427,0.082485,60592.0,60583.0,0.082496]
[1723642527016,0.01,60590.0,60589.0,0.001]
[1723642527216,0.01,60590.0,60589.0,0.3618]
[1723642527421,0.01,60590.0,60589.0,0.001]
[1723642527926,0.01,60590.0,60589.0,0.89612]
[1723642528124,0.00024752,60594.0,60589.0,0.89612]
[1723642528442,0.3608,60613.0,60602.0,0.08247]
[1723642528621,0.3608,60613.0,60606.0,0.3608]
[1723642529025,0.3608,60613.0,60604.0,0.0461]
[1723642529324,0.3608,60613.0,60603.0,0.0474]
[1723642530325,0.3608,60613.0,60605.0,0.082466]
[1723642530525,0.0727596,60612.0,60606.0,0.001]
[1723642530824,0.0727596,60612.0,60606.0,0.3618]
[1723642531020,0.0727596,60612.0,60610.0,0.082459]
[1723642531224,0.009,60612.0,60610.0,0.082459]
[1723642532226,0.009,60612.0,60611.0,0.49496]
[1723642532533,0.3608,60627.0,60611.0,0.95226]
[1723642532834,0.3608,60627.0,60617.0,0.3608]
[1723642533422,0.3608,60627.0,60624.0,0.08244]
[1723642533838,0.00024752,60628.0,60625.0,0.082439]
[1723642534019,0.00024752,60628.0,60624.0,0.3608]
[1723642534227,0.36104752,60628.0,60623.0,0.0453]
[1723642534833,0.00024752,60628.0,60623.0,0.488542]
[1723642535024,0.36104752,60628.0,60623.0,0.0453]